[Event "Late-Titled-Tuesday-Blitz-September-05-2023"]
[Site "Chess.com"]
[Date "2023.09.05"]
[Round "2"]
[White "Andrei_Skvortsov"]
[Black "miraitrunks"]
[Result "1-0"]
[WhiteElo "2632"]
[BlackElo "2079"]
[TimeControl "180+1"]
[EndTime "14:17:02 PDT"]
[Termination "Andrei_Skvortsov won by resignation"]

1. e4 {[%clk 0:03:00.9]} 1... c5 {[%clk 0:02:55.3]} 2. d4 {[%clk 0:02:58.9]}
2... cxd4 {[%clk 0:02:55.2]} 3. Qxd4 {[%clk 0:02:59.8]} 3... Nc6 {[%clk
0:02:55.4]} 4. Qd3 {[%clk 0:02:57.2]} 4... g6 {[%clk 0:02:55.4]} 5. Nf3 {[%clk
0:02:53.6]} 5... Bg7 {[%clk 0:02:55.2]} 6. Be2 {[%clk 0:02:53.3]} 6... d6 {[%clk
0:02:55.1]} 7. Nc3 {[%clk 0:02:53.6]} 7... Nf6 {[%clk 0:02:55.1]} 8. O-O {[%clk
0:02:54.1]} 8... O-O {[%clk 0:02:55.1]} 9. Nd5 {[%clk 0:02:54.1]} 9... Nxd5
{[%clk 0:02:51.9]} 10. exd5 {[%clk 0:02:53.1]} 10... Bf5 {[%clk 0:02:51.8]} 11.
Qd1 {[%clk 0:02:51.4]} 11... Nb4 {[%clk 0:02:28.1]} 12. c3 {[%clk 0:02:47.9]}
12... Nc2 {[%clk 0:02:19.9]} 13. g4 {[%clk 0:02:45.5]} 13... Be4 {[%clk
0:02:14.7]} 14. Ng5 {[%clk 0:02:44.7]} 14... Nxa1 {[%clk 0:01:58.1]} 15. Nxe4
{[%clk 0:02:41.2]} 15... e6 {[%clk 0:01:58.6]} 16. dxe6 {[%clk 0:02:29.5]} 16...
d5 {[%clk 0:01:57.4]} 17. exf7+ {[%clk 0:02:27.6]} 17... Rxf7 {[%clk 0:01:58.3]}
18. Ng5 {[%clk 0:02:27.6]} 18... Re7 {[%clk 0:01:56.7]} 19. Bf3 {[%clk
0:02:21.9]} 19... Re5 {[%clk 0:01:49.9]} 20. Nh3 {[%clk 0:02:02.7]} 20... Qa5
{[%clk 0:01:41.8]} 21. Bf4 {[%clk 0:02:00.4]} 21... Ree8 {[%clk 0:01:30.3]} 22.
Qxd5+ {[%clk 0:01:58.3]} 22... Qxd5 {[%clk 0:01:30.6]} 23. Bxd5+ {[%clk
0:01:59.2]} 23... Kh8 {[%clk 0:01:30.2]} 24. Rxa1 {[%clk 0:01:58.4]} 24... Re2
{[%clk 0:01:21.4]} 25. Rb1 {[%clk 0:01:48.4]} 25... Rd8 {[%clk 0:01:07.2]} 26.
Bf3 {[%clk 0:01:40.1]} 26... Ree8 {[%clk 0:01:04.4]} 27. Bxb7 {[%clk 0:01:38.3]}
27... Rf8 {[%clk 0:01:04.1]} 28. Be3 {[%clk 0:01:36.5]} 28... Rf7 {[%clk
0:00:38.8]} 29. Be4 {[%clk 0:01:32.9]} 29... Rb8 {[%clk 0:00:38.3]} 30. Ng5
{[%clk 0:01:24.3]} 30... Re7 {[%clk 0:00:38]} 31. Bc2 {[%clk 0:01:17.6]} 31...
h6 {[%clk 0:00:35.1]} 32. Nf3 {[%clk 0:01:16]} 32... g5 {[%clk 0:00:34.3]} 33.
Nd4 {[%clk 0:01:14.4]} 33... Reb7 {[%clk 0:00:22.9]} 34. b3 {[%clk 0:01:11.1]}
34... Rc8 {[%clk 0:00:21.7]} 35. c4 {[%clk 0:01:10.4]} 35... Rd7 {[%clk
0:00:21.4]} 36. Bf5 {[%clk 0:01:09.3]} 1-0

[Event "Late-Titled-Tuesday-Blitz-September-05-2023"]
[Site "Chess.com"]
[Date "2023.09.05"]
[Round "2"]
[White "cassoulet"]
[Black "Machteld145"]
[Result "1-0"]
[WhiteElo "2763"]
[BlackElo "2514"]
[TimeControl "180+1"]
[EndTime "14:17:03 PDT"]
[Termination "cassoulet won by checkmate"]

1. d4 {[%clk 0:03:00.9]} 1... d5 {[%clk 0:02:59.5]} 2. Nf3 {[%clk 0:03:00]} 2...
Nf6 {[%clk 0:02:58.6]} 3. Bf4 {[%clk 0:02:58.1]} 3... e6 {[%clk 0:02:59.5]} 4.
e3 {[%clk 0:02:56.3]} 4... Bd6 {[%clk 0:02:59.6]} 5. Bg3 {[%clk 0:02:55.9]} 5...
c5 {[%clk 0:02:59.8]} 6. c3 {[%clk 0:02:56]} 6... Nc6 {[%clk 0:02:59.9]} 7. Nbd2
{[%clk 0:02:56.2]} 7... b6 {[%clk 0:03:00.1]} 8. Bb5 {[%clk 0:02:52.6]} 8... Bb7
{[%clk 0:02:59.9]} 9. Ne5 {[%clk 0:02:51.6]} 9... Rc8 {[%clk 0:02:59.1]} 10. Qa4
{[%clk 0:02:50.8]} 10... Qc7 {[%clk 0:02:37.6]} 11. Ndf3 {[%clk 0:02:43]} 11...
O-O {[%clk 0:02:36.5]} 12. O-O {[%clk 0:02:27.4]} 12... a6 {[%clk 0:02:36.1]}
13. Bxc6 {[%clk 0:02:26.1]} 13... Bxc6 {[%clk 0:02:26.7]} 14. Nxc6 {[%clk
0:02:25.9]} 14... Qxc6 {[%clk 0:02:25.8]} 15. Qxa6 {[%clk 0:02:25.4]} 15... c4
{[%clk 0:02:23.2]} 16. Bxd6 {[%clk 0:02:19.7]} 16... Ra8 {[%clk 0:02:05.2]} 17.
Ne5 {[%clk 0:02:13.8]} 17... Qxd6 {[%clk 0:02:03.6]} 18. Qb5 {[%clk 0:02:13.5]}
18... Rfc8 {[%clk 0:01:46.3]} 19. a3 {[%clk 0:02:03.6]} 19... Ne4 {[%clk
0:01:41]} 20. f3 {[%clk 0:02:03.5]} 20... Nd2 {[%clk 0:01:40.7]} 21. Rf2 {[%clk
0:02:01.6]} 21... Nb3 {[%clk 0:01:40.3]} 22. Re1 {[%clk 0:02:00.8]} 22... Ra5
{[%clk 0:01:30.8]} 23. Qb4 {[%clk 0:01:55.2]} 23... Qc7 {[%clk 0:01:31.4]} 24.
e4 {[%clk 0:01:48.7]} 24... b5 {[%clk 0:01:11.8]} 25. exd5 {[%clk 0:01:44.7]}
25... exd5 {[%clk 0:01:12.7]} 26. Rfe2 {[%clk 0:01:44.3]} 26... g6 {[%clk
0:01:09.8]} 27. Ng4 {[%clk 0:01:42.2]} 27... Raa8 {[%clk 0:01:01.3]} 28. Re7
{[%clk 0:01:40.8]} 28... Qf4 {[%clk 0:00:59.5]} 29. Qxb5 {[%clk 0:01:31.9]}
29... Rd8 {[%clk 0:00:47.3]} 30. Qc6 {[%clk 0:01:17.6]} 30... Rab8 {[%clk
0:00:39.9]} 31. Nf6+ {[%clk 0:01:10.7]} 31... Kg7 {[%clk 0:00:39.6]} 32. Rxf7+
{[%clk 0:00:55.8]} 32... Kxf7 {[%clk 0:00:38.9]} 33. Qe6+ {[%clk 0:00:55.9]}
33... Kg7 {[%clk 0:00:35.3]} 34. Qe7+ {[%clk 0:00:55.9]} 34... Kh6 {[%clk
0:00:33]} 35. Ng4+ {[%clk 0:00:37.9]} 35... Kh5 {[%clk 0:00:32.6]} 36. Qxh7+
{[%clk 0:00:36.4]} 36... Kg5 {[%clk 0:00:33]} 37. h4+ {[%clk 0:00:34]} 37... Kf5
{[%clk 0:00:33.5]} 38. Qf7# {[%clk 0:00:33.8]} 1-0

[Event "Late-Titled-Tuesday-Blitz-September-05-2023"]
[Site "Chess.com"]
[Date "2023.09.05"]
[Round "2"]
[White "TC2304"]
[Black "AndreiITrifan"]
[Result "0-1"]
[WhiteElo "2348"]
[BlackElo "2621"]
[TimeControl "180+1"]
[EndTime "14:17:05 PDT"]
[Termination "AndreiITrifan won by resignation"]

1. c4 {[%clk 0:03:00.9]} 1... Nf6 {[%clk 0:02:59.4]} 2. g3 {[%clk 0:02:59.7]}
2... e6 {[%clk 0:02:59.1]} 3. Bg2 {[%clk 0:03:00.3]} 3... d5 {[%clk 0:02:59.2]}
4. Nf3 {[%clk 0:03:01]} 4... Be7 {[%clk 0:02:58.9]} 5. O-O {[%clk 0:03:01.6]}
5... O-O {[%clk 0:02:58.7]} 6. b3 {[%clk 0:03:02.3]} 6... b6 {[%clk 0:02:58.5]}
7. Bb2 {[%clk 0:03:03]} 7... Bb7 {[%clk 0:02:58.8]} 8. d4 {[%clk 0:03:03.8]}
8... Nbd7 {[%clk 0:02:58.9]} 9. Nbd2 {[%clk 0:03:03.3]} 9... c5 {[%clk
0:02:58.8]} 10. Rc1 {[%clk 0:03:01.1]} 10... Rc8 {[%clk 0:02:58.2]} 11. Ne5
{[%clk 0:02:59]} 11... h6 {[%clk 0:02:54.9]} 12. Re1 {[%clk 0:02:53.4]} 12... a6
{[%clk 0:02:44.6]} 13. e4 {[%clk 0:02:53.6]} 13... dxe4 {[%clk 0:02:42]} 14.
Nxe4 {[%clk 0:02:53.1]} 14... Nxe4 {[%clk 0:02:42.9]} 15. Bxe4 {[%clk
0:02:53.3]} 15... Bxe4 {[%clk 0:02:41.7]} 16. Rxe4 {[%clk 0:02:52.3]} 16... Nxe5
{[%clk 0:02:41.6]} 17. Rxe5 {[%clk 0:02:33.5]} 17... Bf6 {[%clk 0:02:32.9]} 18.
Re4 {[%clk 0:02:33.3]} 18... Qd7 {[%clk 0:02:31]} 19. Rc2 {[%clk 0:02:33.3]}
19... Rfd8 {[%clk 0:02:28.9]} 20. Rd2 {[%clk 0:02:29.6]} 20... Qb7 {[%clk
0:02:21.8]} 21. Re3 {[%clk 0:02:15.7]} 21... cxd4 {[%clk 0:01:55.2]} 22. Bxd4
{[%clk 0:02:15.1]} 22... Bg5 {[%clk 0:01:53.5]} 23. f4 {[%clk 0:02:14.6]} 23...
Be7 {[%clk 0:01:52.7]} 24. Red3 {[%clk 0:02:09.1]} 24... Rxd4 {[%clk 0:01:50.2]}
25. Rxd4 {[%clk 0:02:06.1]} 25... Bc5 {[%clk 0:01:49.9]} 26. h4 {[%clk
0:01:29.2]} 26... b5 {[%clk 0:01:20.2]} 27. Kh2 {[%clk 0:01:20.6]} 27... Bxd4
{[%clk 0:01:18.1]} 28. Rxd4 {[%clk 0:01:21.1]} 28... bxc4 {[%clk 0:01:17]} 29.
bxc4 {[%clk 0:01:05.2]} 29... Qb2+ {[%clk 0:01:12.3]} 30. Rd2 {[%clk 0:01:05.6]}
30... Qb6 {[%clk 0:00:56.3]} 31. Rc2 {[%clk 0:01:03]} 31... Rd8 {[%clk
0:00:52.4]} 32. Rd2 {[%clk 0:01:01.4]} 32... Rc8 {[%clk 0:00:50.7]} 33. Rc2
{[%clk 0:01:00.5]} 33... Qe3 {[%clk 0:00:45.8]} 34. Qc1 {[%clk 0:00:51.6]} 34...
Qc5 {[%clk 0:00:43.5]} 35. Rc3 {[%clk 0:00:50.6]} 35... Rd8 {[%clk 0:00:42.5]}
36. Qc2 {[%clk 0:00:45.9]} 36... g6 {[%clk 0:00:37]} 37. Kh3 {[%clk 0:00:42.3]}
37... Kh7 {[%clk 0:00:34.2]} 38. Rd3 {[%clk 0:00:41.8]} 38... Qf5+ {[%clk
0:00:33.9]} 39. g4 {[%clk 0:00:41.9]} 39... Qxd3+ {[%clk 0:00:34.8]} 40. Qxd3
{[%clk 0:00:41.7]} 40... Rxd3+ {[%clk 0:00:35]} 0-1

[Event "Late-Titled-Tuesday-Blitz-September-05-2023"]
[Site "Chess.com"]
[Date "2023.09.05"]
[Round "2"]
[White "jamengrand"]
[Black "Ermito2020"]
[Result "0-1"]
[WhiteElo "2341"]
[BlackElo "2582"]
[TimeControl "180+1"]
[EndTime "14:17:06 PDT"]
[Termination "Ermito2020 won by resignation"]

1. e4 {[%clk 0:03:00.9]} 1... e6 {[%clk 0:02:59.1]} 2. d4 {[%clk 0:03:00.7]}
2... d5 {[%clk 0:02:58.9]} 3. e5 {[%clk 0:03:01.1]} 3... c5 {[%clk 0:02:44.1]}
4. c3 {[%clk 0:03:00.6]} 4... Qb6 {[%clk 0:02:43]} 5. Nf3 {[%clk 0:03:00.5]}
5... Nc6 {[%clk 0:02:43.3]} 6. Bd3 {[%clk 0:03:00]} 6... cxd4 {[%clk 0:02:42.7]}
7. O-O {[%clk 0:02:59.6]} 7... Bd7 {[%clk 0:02:40.4]} 8. Re1 {[%clk 0:02:59.2]}
8... Nge7 {[%clk 0:02:37.7]} 9. a3 {[%clk 0:02:54.3]} 9... Rc8 {[%clk
0:02:34.6]} 10. b4 {[%clk 0:02:44.6]} 10... h6 {[%clk 0:01:57.5]} 11. Bb2 {[%clk
0:02:36.3]} 11... Na5 {[%clk 0:01:37.9]} 12. cxd4 {[%clk 0:02:23.2]} 12... Nc4
{[%clk 0:01:36.4]} 13. Bc1 {[%clk 0:02:08.5]} 13... Nf5 {[%clk 0:01:29.7]} 14.
Nc3 {[%clk 0:01:50.9]} 14... Nxd4 {[%clk 0:01:14.4]} 15. Na4 {[%clk 0:00:36.7]}
15... Nxf3+ {[%clk 0:01:05.1]} 16. gxf3 {[%clk 0:00:34.1]} 16... Qd4 {[%clk
0:01:00.6]} 17. Rb1 {[%clk 0:00:12.6]} 17... Nxe5 {[%clk 0:00:40.8]} 18. Rxe5
{[%clk 0:00:06.3]} 18... Qxe5 {[%clk 0:00:38.9]} 19. Bb2 {[%clk 0:00:06.6]}
19... Qg5+ {[%clk 0:00:34.6]} 20. Kh1 {[%clk 0:00:07]} 20... Bd6 {[%clk
0:00:31.6]} 21. Qg1 {[%clk 0:00:01.7]} 0-1

[Event "Late-Titled-Tuesday-Blitz-September-05-2023"]
[Site "Chess.com"]
[Date "2023.09.05"]
[Round "2"]
[White "Rinqed222"]
[Black "newyorkmouse"]
[Result "0-1"]
[WhiteElo "2214"]
[BlackElo "2459"]
[TimeControl "180+1"]
[EndTime "14:17:07 PDT"]
[Termination "newyorkmouse won on time"]

1. e4 {[%clk 0:03:00.9]} 1... e6 {[%clk 0:02:59.1]} 2. d4 {[%clk 0:03:00.8]}
2... c5 {[%clk 0:02:59.6]} 3. d5 {[%clk 0:02:54.4]} 3... exd5 {[%clk 0:02:59.5]}
4. exd5 {[%clk 0:02:54.4]} 4... d6 {[%clk 0:03:00.1]} 5. c4 {[%clk 0:02:53.2]}
5... Nf6 {[%clk 0:03:00.3]} 6. Nc3 {[%clk 0:02:53.1]} 6... g6 {[%clk 0:03:00.9]}
7. Bd3 {[%clk 0:02:50.7]} 7... Bg7 {[%clk 0:03:00.8]} 8. h3 {[%clk 0:02:46.4]}
8... O-O {[%clk 0:03:00.9]} 9. Be3 {[%clk 0:02:46.5]} 9... Na6 {[%clk
0:03:00.9]} 10. a3 {[%clk 0:02:45.8]} 10... Nc7 {[%clk 0:03:01.1]} 11. Qd2
{[%clk 0:02:46.1]} 11... Re8 {[%clk 0:02:58.6]} 12. Nge2 {[%clk 0:02:44.5]}
12... b5 {[%clk 0:02:55.4]} 13. Bh6 {[%clk 0:02:16.5]} 13... bxc4 {[%clk
0:02:31.7]} 14. Bxc4 {[%clk 0:02:14.7]} 14... Bh8 {[%clk 0:02:28.3]} 15. O-O
{[%clk 0:02:11.7]} 15... Rb8 {[%clk 0:02:25.2]} 16. Bg5 {[%clk 0:02:03.6]} 16...
Bf5 {[%clk 0:02:06.7]} 17. Ng3 {[%clk 0:02:01.9]} 17... Qc8 {[%clk 0:02:05.1]}
18. Rae1 {[%clk 0:01:35.2]} 18... Qd7 {[%clk 0:01:42.5]} 19. Nxf5 {[%clk
0:01:14.9]} 19... Qxf5 {[%clk 0:01:42.1]} 20. Bd3 {[%clk 0:01:04.8]} 20... Qd7
{[%clk 0:01:37.8]} 21. Rxe8+ {[%clk 0:00:44]} 21... Rxe8 {[%clk 0:01:38.7]} 22.
Re1 {[%clk 0:00:43.5]} 22... Rxe1+ {[%clk 0:01:36]} 23. Qxe1 {[%clk 0:00:43.6]}
23... Nfxd5 {[%clk 0:01:35.5]} 24. Nxd5 {[%clk 0:00:23.1]} 24... Nxd5 {[%clk
0:01:35.9]} 25. Bc4 {[%clk 0:00:20.5]} 25... Nb6 {[%clk 0:01:34.4]} 26. Ba2
{[%clk 0:00:14.2]} 26... Bxb2 {[%clk 0:01:34.3]} 27. Qe4 {[%clk 0:00:07.6]}
27... d5 {[%clk 0:01:26.7]} 28. Qc2 {[%clk 0:00:07.3]} 28... Bd4 {[%clk
0:01:25.5]} 29. a4 {[%clk 0:00:04.1]} 29... Qxa4 {[%clk 0:01:23.4]} 30. Qxa4
{[%clk 0:00:02.5]} 30... Nxa4 {[%clk 0:01:23.7]} 31. Bxd5 {[%clk 0:00:03.1]}
31... Nc3 {[%clk 0:01:22.8]} 32. Bc4 {[%clk 0:00:03.1]} 32... a5 {[%clk
0:01:23]} 33. Kf1 {[%clk 0:00:03.5]} 33... a4 {[%clk 0:01:23.3]} 34. Bc1 {[%clk
0:00:03]} 34... Ne4 {[%clk 0:01:11.3]} 35. f3 {[%clk 0:00:02.3]} 35... Nd6
{[%clk 0:01:09.3]} 36. Bd5 {[%clk 0:00:01.5]} 36... Nb5 {[%clk 0:01:06]} 0-1

[Event "Late-Titled-Tuesday-Blitz-September-05-2023"]
[Site "Chess.com"]
[Date "2023.09.05"]
[Round "2"]
[White "Djager97"]
[Black "micke12a"]
[Result "1-0"]
[WhiteElo "2511"]
[BlackElo "2321"]
[TimeControl "180+1"]
[EndTime "14:17:10 PDT"]
[Termination "Djager97 won on time"]

1. e4 {[%clk 0:03:00.9]} 1... c5 {[%clk 0:02:59.8]} 2. Nf3 {[%clk 0:03:00.8]}
2... d6 {[%clk 0:03:00.4]} 3. d4 {[%clk 0:03:00.8]} 3... cxd4 {[%clk 0:03:01.3]}
4. Nxd4 {[%clk 0:03:01.3]} 4... Nf6 {[%clk 0:03:02]} 5. Nc3 {[%clk 0:03:01.5]}
5... g6 {[%clk 0:03:02.7]} 6. Be3 {[%clk 0:03:01.3]} 6... Bg7 {[%clk 0:03:03.3]}
7. f3 {[%clk 0:03:01.7]} 7... O-O {[%clk 0:03:04]} 8. Qd2 {[%clk 0:03:02.2]}
8... Nc6 {[%clk 0:03:04.7]} 9. O-O-O {[%clk 0:03:02.3]} 9... Bd7 {[%clk
0:03:05.5]} 10. h4 {[%clk 0:02:57.9]} 10... Rc8 {[%clk 0:03:05.3]} 11. Kb1
{[%clk 0:02:56.3]} 11... Ne5 {[%clk 0:03:04.6]} 12. Nb3 {[%clk 0:02:43.8]} 12...
h5 {[%clk 0:02:47.5]} 13. Bh6 {[%clk 0:02:36.1]} 13... a5 {[%clk 0:02:35.5]} 14.
Bxg7 {[%clk 0:02:33.2]} 14... Kxg7 {[%clk 0:02:35.6]} 15. Nd4 {[%clk 0:02:30.5]}
15... a4 {[%clk 0:02:15.5]} 16. f4 {[%clk 0:02:24.9]} 16... Neg4 {[%clk
0:02:10.8]} 17. a3 {[%clk 0:02:18.7]} 17... Kh7 {[%clk 0:02:00.4]} 18. Nf3
{[%clk 0:02:02.9]} 18... Bc6 {[%clk 0:01:25.1]} 19. Bd3 {[%clk 0:01:50.6]} 19...
Qb6 {[%clk 0:01:15.1]} 20. Rhe1 {[%clk 0:01:19]} 20... Rfd8 {[%clk 0:01:13.7]}
21. Nd5 {[%clk 0:01:03.7]} 21... Bxd5 {[%clk 0:00:52.8]} 22. exd5 {[%clk
0:01:04.6]} 22... Rc7 {[%clk 0:00:28.9]} 23. f5 {[%clk 0:00:58.2]} 23... Nf2
{[%clk 0:00:23.2]} 24. fxg6+ {[%clk 0:00:54.7]} 24... fxg6 {[%clk 0:00:23.5]}
25. Ng5+ {[%clk 0:00:54.2]} 25... Kg8 {[%clk 0:00:18.7]} 26. Ne6 {[%clk
0:00:49.4]} 26... Nxd1 {[%clk 0:00:17.2]} 27. Rxd1 {[%clk 0:00:50.3]} 27... Nxd5
{[%clk 0:00:13.9]} 28. Qh6 {[%clk 0:00:48.6]} 28... Nc3+ {[%clk 0:00:01.5]} 29.
Ka1 {[%clk 0:00:48.4]} 29... Qxb2+ {[%clk 0:00:01.2]} 30. Kxb2 {[%clk
0:00:47.8]} 30... Nxd1+ {[%clk 0:00:01.7]} 31. Kc1 {[%clk 0:00:44.6]} 1-0

[Event "Late-Titled-Tuesday-Blitz-September-05-2023"]
[Site "Chess.com"]
[Date "2023.09.05"]
[Round "2"]
[White "GMZaven"]
[Black "ridnani2021"]
[Result "1/2-1/2"]
[WhiteElo "2739"]
[BlackElo "2544"]
[TimeControl "180+1"]
[EndTime "14:17:11 PDT"]
[Termination "Game drawn by repetition"]

1. e4 {[%clk 0:03:00.9]} 1... c5 {[%clk 0:02:58.7]} 2. Nf3 {[%clk 0:03:00.2]}
2... d6 {[%clk 0:02:59]} 3. d4 {[%clk 0:03:00.1]} 3... cxd4 {[%clk 0:02:59.9]}
4. Nxd4 {[%clk 0:03:00.8]} 4... Nf6 {[%clk 0:02:58.1]} 5. Nc3 {[%clk 0:03:01.2]}
5... a6 {[%clk 0:02:58.4]} 6. h3 {[%clk 0:03:00.7]} 6... e5 {[%clk 0:02:57.5]}
7. Nb3 {[%clk 0:03:00.9]} 7... b5 {[%clk 0:02:54.9]} 8. a4 {[%clk 0:02:57]} 8...
b4 {[%clk 0:02:49.9]} 9. Nd5 {[%clk 0:02:56.8]} 9... Nbd7 {[%clk 0:02:47.5]} 10.
Nxb4 {[%clk 0:02:55.9]} 10... Bb7 {[%clk 0:02:45.2]} 11. Be3 {[%clk 0:02:45.5]}
11... Nxe4 {[%clk 0:02:33.8]} 12. Bc4 {[%clk 0:02:38.9]} 12... Be7 {[%clk
0:02:28.6]} 13. Bd5 {[%clk 0:02:37.8]} 13... Bxd5 {[%clk 0:02:16.9]} 14. Nxd5
{[%clk 0:02:34.8]} 14... O-O {[%clk 0:02:12.5]} 15. O-O {[%clk 0:02:34.8]} 15...
Nef6 {[%clk 0:02:10.9]} 16. a5 {[%clk 0:02:16.7]} 16... Nxd5 {[%clk 0:01:59]}
17. Qxd5 {[%clk 0:02:17.6]} 17... Nf6 {[%clk 0:01:59.5]} 18. Qd2 {[%clk
0:02:14.2]} 18... d5 {[%clk 0:01:51.8]} 19. Bb6 {[%clk 0:02:13.8]} 19... Qc8
{[%clk 0:01:47.9]} 20. Rfe1 {[%clk 0:02:13.7]} 20... Bd6 {[%clk 0:01:44.7]} 21.
Rad1 {[%clk 0:02:05.4]} 21... Qf5 {[%clk 0:01:35.1]} 22. c4 {[%clk 0:01:54.8]}
22... Rac8 {[%clk 0:01:27.4]} 23. cxd5 {[%clk 0:01:52.2]} 23... Rc2 {[%clk
0:01:25.6]} 24. Qd3 {[%clk 0:01:50.8]} 24... Qxd3 {[%clk 0:01:24.1]} 25. Rxd3
{[%clk 0:01:51.7]} 25... Rxb2 {[%clk 0:01:23]} 26. Nd2 {[%clk 0:01:43.5]} 26...
Rc8 {[%clk 0:01:17.4]} 27. Nf1 {[%clk 0:01:35.9]} 27... Rcc2 {[%clk 0:01:00.5]}
28. Ng3 {[%clk 0:01:33.1]} 28... e4 {[%clk 0:00:55.6]} 29. Rdd1 {[%clk
0:00:54.9]} 29... Bxg3 {[%clk 0:00:48.1]} 30. fxg3 {[%clk 0:00:50.2]} 30...
Rxg2+ {[%clk 0:00:47.4]} 31. Kf1 {[%clk 0:00:50.1]} 31... Nh5 {[%clk 0:00:42.8]}
32. Re3 {[%clk 0:00:49.9]} 32... Rgf2+ {[%clk 0:00:21]} 33. Kg1 {[%clk
0:00:41.8]} 33... Rg2+ {[%clk 0:00:20.8]} 34. Kf1 {[%clk 0:00:42.2]} 34... Rgf2+
{[%clk 0:00:20.7]} 35. Kg1 {[%clk 0:00:37.3]} 35... Rg2+ {[%clk 0:00:20.5]} 36.
Kf1 {[%clk 0:00:36.4]} 1/2-1/2

[Event "Late-Titled-Tuesday-Blitz-September-05-2023"]
[Site "Chess.com"]
[Date "2023.09.05"]
[Round "2"]
[White "kinga2008"]
[Black "rasmussvane"]
[Result "0-1"]
[WhiteElo "2397"]
[BlackElo "2950"]
[TimeControl "180+1"]
[EndTime "14:17:14 PDT"]
[Termination "rasmussvane won on time"]

1. e4 {[%clk 0:03:00.9]} 1... c6 {[%clk 0:03:00.2]} 2. Nf3 {[%clk 0:02:57.8]}
2... d5 {[%clk 0:02:58]} 3. exd5 {[%clk 0:02:30.1]} 3... cxd5 {[%clk 0:02:57]}
4. c4 {[%clk 0:02:17.7]} 4... Nf6 {[%clk 0:02:55.8]} 5. d4 {[%clk 0:02:17.5]}
5... g6 {[%clk 0:02:46.9]} 6. Nc3 {[%clk 0:02:09.3]} 6... Bg7 {[%clk 0:02:46]}
7. Bg5 {[%clk 0:02:02.8]} 7... dxc4 {[%clk 0:02:40.9]} 8. Bxc4 {[%clk
0:02:02.5]} 8... O-O {[%clk 0:02:41]} 9. Qd2 {[%clk 0:02:02.6]} 9... Bf5 {[%clk
0:02:28]} 10. Bh6 {[%clk 0:02:02]} 10... Nc6 {[%clk 0:02:26.7]} 11. Bxg7 {[%clk
0:02:01.5]} 11... Kxg7 {[%clk 0:02:26.9]} 12. d5 {[%clk 0:01:53.9]} 12... Na5
{[%clk 0:02:25.7]} 13. Be2 {[%clk 0:01:53.9]} 13... Rc8 {[%clk 0:02:24.8]} 14.
O-O {[%clk 0:01:53.8]} 14... Bg4 {[%clk 0:02:16.6]} 15. Rfe1 {[%clk 0:01:35.8]}
15... Bxf3 {[%clk 0:02:16.5]} 16. Bxf3 {[%clk 0:01:29.2]} 16... Nc4 {[%clk
0:02:13.6]} 17. Qe2 {[%clk 0:01:29.4]} 17... Qb6 {[%clk 0:02:07.3]} 18. Na4
{[%clk 0:01:20.7]} 18... Qb4 {[%clk 0:02:01.2]} 19. b3 {[%clk 0:01:16.5]} 19...
Nd6 {[%clk 0:01:57.9]} 20. Nb2 {[%clk 0:01:11]} 20... Rc7 {[%clk 0:01:54.4]} 21.
Nd3 {[%clk 0:01:09.9]} 21... Qb5 {[%clk 0:01:49.5]} 22. Rac1 {[%clk 0:01:06.7]}
22... Rfc8 {[%clk 0:01:49.4]} 23. Rxc7 {[%clk 0:01:06.4]} 23... Rxc7 {[%clk
0:01:50.3]} 24. h3 {[%clk 0:00:57.7]} 24... Nf5 {[%clk 0:01:49.8]} 25. Qe5
{[%clk 0:00:50.7]} 25... Rd7 {[%clk 0:01:42.1]} 26. Nf4 {[%clk 0:00:49.8]} 26...
Qb4 {[%clk 0:01:41]} 27. Re4 {[%clk 0:00:35.3]} 27... Qd6 {[%clk 0:01:39.2]} 28.
Qc3 {[%clk 0:00:24.3]} 28... Rc7 {[%clk 0:01:35.6]} 29. Rc4 {[%clk 0:00:20.3]}
29... Rxc4 {[%clk 0:01:35.7]} 30. Qxc4 {[%clk 0:00:21.2]} 30... Qe5 {[%clk
0:01:36.2]} 31. Nd3 {[%clk 0:00:13.9]} 31... Qa1+ {[%clk 0:01:32.8]} 32. Nc1
{[%clk 0:00:14.3]} 32... Qb2 {[%clk 0:01:24.8]} 33. Qc7 {[%clk 0:00:08.3]} 33...
h5 {[%clk 0:01:21.5]} 34. Nd3 {[%clk 0:00:05.7]} 34... Qb1+ {[%clk 0:01:20.8]}
35. Nc1 {[%clk 0:00:06]} 35... Nd4 {[%clk 0:01:20.7]} 36. Bd1 {[%clk 0:00:03.8]}
36... Qe4 {[%clk 0:01:13.9]} 37. Qxb7 {[%clk 0:00:02.7]} 37... Qe1+ {[%clk
0:01:12.9]} 38. Kh2 {[%clk 0:00:03.3]} 38... Qxd1 {[%clk 0:01:12.6]} 39. Qxa7
{[%clk 0:00:03.2]} 39... Ne4 {[%clk 0:01:03.1]} 40. Qxe7 {[%clk 0:00:01.4]}
40... Nxf2 {[%clk 0:01:03.5]} 0-1